bitfinex/quotes_BTCUSD_20240715
["timestamp","ask_amount","ask_price","bid_price","bid_amount"]
[1721064771334,0.00064,63567.0,63566.0,2.0737331]
[1721064771680,0.00064,63567.0,63566.0,2.1380331]
[1721064771914,0.00064,63567.0,63566.0,2.3380331]
[1721064772110,0.00064,63567.0,63566.0,2.1380331]
[1721064772314,0.00064,63567.0,63566.0,2.3380331]
[1721064773119,0.00064,63567.0,63566.0,2.38518392]
[1721064773973,0.00064,63567.0,63566.0,2.38518259]
[1721064777238,0.00064,63567.0,63566.0,2.38518]
[1721064778699,0.00064,63567.0,63566.0,2.18518]
[1721064778898,0.00064,63567.0,63566.0,2.38518]
[1721064779845,0.00064,63567.0,63566.0,3.01458003]
[1721064780050,0.00064,63567.0,63566.0,3.24518174]
[1721064780254,0.00064,63567.0,63566.0,3.24515028]
[1721064780458,0.00064,63567.0,63566.0,3.38655329]
[1721064780673,0.00064,63567.0,63566.0,3.2559597]
[1721064780878,0.00064,63567.0,63566.0,3.38655242]
[1721064781963,0.00064,63567.0,63566.0,3.24514941]
[1721064783215,0.00064,63567.0,63566.0,3.11455669]
[1721064783420,0.00064,63567.0,63566.0,3.24514941]
[1721064783767,0.00064,63567.0,63566.0,3.232311]
[1721064784268,0.00064,63567.0,63566.0,3.11455669]
[1721064784478,0.00064,63567.0,63566.0,2.7658331]
[1721064784623,0.00064,63567.0,63566.0,3.11457522]
[1721064786013,0.00064,63567.0,63566.0,3.11457693]
[1721064786518,0.00064,63567.0,63566.0,3.20874889]
[1721064787013,0.00064,63567.0,63566.0,3.52338189]
[1721064787209,0.00264,63567.0,63566.0,3.36290274]
[1721064787498,0.00264,63567.0,63566.0,3.23230283]
[1721064787731,0.00264,63567.0,63566.0,3.5598079]
[1721064787933,1e-08,63567.0,63566.0,3.8098079]
[1721064789246,1e-08,63567.0,63566.0,3.82033291]
[1721064789450,1e-08,63567.0,63566.0,3.95091455]
[1721064790468,1e-08,63567.0,63566.0,3.80973836]
[1721064791663,1e-08,63567.0,63566.0,3.49510536]
[1721064791868,1e-08,63567.0,63566.0,1.50913681]
[1721064792109,1e-08,63567.0,63566.0,1.4621001]
[1721064792468,0.06590001,63567.0,63566.0,1.4621001]
[1721064792666,0.06590001,63567.0,63566.0,0.787503]
[1721064792865,0.06590001,63567.0,63566.0,0.315554]
[1721064792866,0.17155332,63567.0,63566.0,0.315554]
[1721064793642,0.24622222,63567.0,63559.0,0.000924]
[1721064793845,0.0614,63565.0,63560.0,0.157329]
[1721064794000,0.0614,63565.0,63552.0,0.157349]
[1721064794001,0.157335,63559.0,63552.0,0.157349]
[1721064794199,0.157342,63556.0,63548.0,0.466996]
[1721064794406,0.08645331,63555.0,63549.0,0.4954993]
[1721064794643,0.0627,63555.0,63554.0,0.157346]
[1721064794859,0.0627,63555.0,63554.0,0.8320631]
[1721064795084,1e-08,63567.0,63566.0,0.2026471]
[1721064795287,1e-08,63567.0,63566.0,0.8319131]
[1721064795489,1e-08,63567.0,63566.0,1.1465461]
[1721064795745,0.06200001,63567.0,63566.0,1.2665461]
[1721064795915,0.06200001,63567.0,63566.0,1.1465461]
[1721064795916,1e-08,63567.0,63566.0,1.1465461]
[1721064796501,1e-08,63567.0,63566.0,0.8319131]
[1721064796945,1e-08,63567.0,63566.0,1.1465461]
[1721064798065,1e-08,63567.0,63566.0,1.2665461]
[1721064798283,1e-08,63567.0,63566.0,1.1465461]
[1721064799047,1e-08,63567.0,63566.0,1.5811791]
[1721064799448,1e-08,63567.0,63566.0,1.8958091]
[1721064800102,1e-08,63567.0,63566.0,2.0958091]
[1721064800312,1e-08,63567.0,63566.0,1.8958091]
[1721064801393,1e-08,63567.0,63566.0,2.0958091]
[1721064801972,1e-08,63567.0,63566.0,1.8958091]
[1721064802536,1e-08,63567.0,63566.0,1.5811761]
[1721064802744,1e-08,63567.0,63566.0,1.4611761]
[1721064803735,1e-08,63567.0,63566.0,1.101212]
[1721064803938,0.06160001,63567.0,63566.0,1.1465431]
[1721064808204,0.06160001,63567.0,63566.0,0.471946]
[1721064808614,0.08341199,63567.0,63566.0,0.471946]
[1721064808781,0.31539489,63567.0,63566.0,0.31463]
[1721064808976,0.08341199,63567.0,63566.0,0.31963]
[1721064809177,0.63030289,63567.0,63566.0,0.31963]
[1721064809386,1.07778501,63567.0,63566.0,0.31463]
[1721064809583,1.07778501,63567.0,63556.0,1.2457]
[1721064809584,0.5466859,63557.0,63556.0,1.2457]
[1721064809789,0.5466859,63557.0,63544.0,0.0453311]
[1721064809790,0.0656,63553.0,63544.0,0.0453311]
[1721064809993,0.02181198,63552.0,63547.0,0.0453311]
[1721064810288,0.02181198,63552.0,63547.0,0.2026941]
[1721064810510,0.02181198,63552.0,63550.0,0.0453311]
[1721064810698,0.0802,63551.0,63550.0,0.0453311]
[1721064811049,0.0802,63551.0,63549.0,0.166542]
[1721064811050,0.10262052,63551.0,63549.0,0.009185]
[1721064811392,0.0802,63551.0,63549.0,0.009185]
[1721064813442,0.157356,63550.0,63549.0,0.009185]
[1721064813642,0.472068,63550.0,63549.0,0.009185]
[1721064813843,0.472068,63550.0,63549.0,0.010185]
[1721064813844,0.88348567,63550.0,63549.0,0.010185]
[1721064814042,0.88348567,63550.0,63549.0,0.009185]
[1721064814043,0.56877367,63550.0,63549.0,0.009185]
[1721064814344,0.56829892,63550.0,63549.0,0.009185]
[1721064814788,0.56829991,63550.0,63549.0,0.009185]
[1721064815533,0.49363101,63550.0,63549.0,0.009185]
[1721064815683,0.472068,63550.0,63549.0,0.009185]
[1721064815858,0.157356,63550.0,63549.0,0.009185]
[1721064816281,0.009,63550.0,63549.0,0.010185]
[1721064816581,0.009,63550.0,63549.0,0.009185]
[1721064816918,0.018,63550.0,63549.0,0.010185]
[1721064817119,0.0802,63551.0,63549.0,0.009185]
[1721064817708,0.472068,63550.0,63549.0,0.009185]
[1721064817904,0.5467369,63550.0,63549.0,0.009185]
[1721064818104,0.481068,63550.0,63549.0,0.010185]
[1721064818725,0.5557369,63550.0,63549.0,0.010185]
[1721064818969,0.481068,63550.0,63549.0,0.010185]
[1721064819174,0.166356,63550.0,63549.0,0.010185]
[1721064819698,0.157356,63550.0,63549.0,0.009185]
[1721064819889,0.5467369,63550.0,63549.0,0.009185]
[1721064820454,0.5467369,63550.0,63549.0,0.010185]
[1721064820866,0.5467369,63550.0,63549.0,0.009185]
[1721064821062,0.5557369,63550.0,63549.0,0.010185]
[1721064821485,0.009,63550.0,63549.0,0.010185]
[1721064821690,0.009,63550.0,63549.0,0.0565161]
[1721064821691,0.018,63550.0,63549.0,0.0565161]
[1721064821888,0.018,63550.0,63549.0,0.8433081]
[1721064822089,0.018,63550.0,63549.0,0.48326]
[1721064822301,0.018,63550.0,63549.0,0.168543]
[1721064822656,0.018,63550.0,63549.0,0.48326]
[1721064822858,0.018,63550.0,63549.0,0.5285911]
[1721064823063,0.157349,63553.0,63549.0,0.009185]
[1721064823283,0.2149689,63550.0,63549.0,0.009185]
[1721064823483,0.9148369,63550.0,63549.0,0.009185]
[1721064823686,0.9238369,63550.0,63549.0,0.010185]
[1721064823912,1.2295489,63550.0,63549.0,0.009185]
[1721064824283,1.2295489,63550.0,63549.0,0.010185]
[1721064824493,0.525456,63550.0,63549.0,0.010185]
[1721064824693,0.297656,63550.0,63549.0,0.010185]
[1721064824937,0.612368,63550.0,63549.0,0.010185]
[1721064825138,0.840168,63550.0,63549.0,0.009185]
[1721064825338,0.525456,63550.0,63549.0,0.009185]
[1721064825964,0.6001249,63550.0,63549.0,0.009185]
[1721064826560,0.9148369,63550.0,63549.0,0.009185]
[1721064826790,1.2295489,63550.0,63549.0,0.009185]
[1721064826944,0.840168,63550.0,63549.0,0.009185]
[1721064827319,0.534456,63550.0,63549.0,0.010185]
[1721064827509,0.849168,63550.0,63549.0,0.010185]
[1721064827716,0.840168,63550.0,63549.0,0.009185]
[1721064828017,0.009,63550.0,63549.0,0.0555161]
[1721064828215,0.009,63550.0,63549.0,0.009185]
[1721064828627,0.018,63550.0,63549.0,0.010185]
[1721064828826,0.166356,63550.0,63549.0,0.009185]
[1721064829133,0.175356,63550.0,63549.0,0.010185]
[1721064829537,0.490068,63550.0,63549.0,0.010185]
[1721064829674,0.175356,63550.0,63549.0,0.010185]
[1721064830442,0.157356,63550.0,63549.0,0.009185]
[1721064830678,0.008,63550.0,63549.0,0.010185]
[1721064830824,0.008,63550.0,63549.0,0.009185]
[1721064831244,0.017,63550.0,63549.0,0.010185]
[1721064831453,0.009,63550.0,63549.0,0.010185]
[1721064831799,0.017,63550.0,63549.0,0.011185]
[1721064831967,0.174356,63550.0,63549.0,0.011185]
[1721064832168,0.472068,63550.0,63549.0,0.009185]
[1721064832444,0.49391156,63550.0,63549.0,0.009185]
[1721064832994,0.02184356,63550.0,63549.0,0.009185]
[1721064833222,0.00028,63553.0,63550.0,0.0453311]
[1721064833479,0.00083,63554.0,63553.0,0.4873761]
[1721064833694,0.00083,63554.0,63553.0,1.1167701]
[1721064833898,0.00083,63554.0,63553.0,1.2367701]
[1721064834100,0.00083,63554.0,63553.0,1.3143701]
[1721064834274,0.00083,63554.0,63553.0,1.6290671]
[1721064834477,1e-08,63567.0,63566.0,0.8019131]
[1721064834661,1e-08,63567.0,63566.0,0.4872801]
[1721064836320,1e-08,63567.0,63566.0,0.471949]
[1721064836527,1e-08,63567.0,63566.0,0.157316]
[1721064836853,1e-08,63567.0,63566.0,0.471949]
[1721064837080,1e-08,63567.0,63566.0,0.8832131]
[1721064837295,0.00200001,63567.0,63566.0,1.3178461]
[1721064837528,0.00200001,63567.0,63566.0,1.2630461]
[1721064838098,1e-08,63567.0,63566.0,1.2630461]
[1721064838715,1e-08,63567.0,63566.0,0.8832131]
[1721064839116,0.33246891,63567.0,63566.0,0.001]
[1721064839495,0.35544138,63567.0,63566.0,0.001]
[1721064839696,0.25077073,63567.0,63566.0,0.001]
[1721064840107,0.25105073,63567.0,63566.0,0.001]
[1721064840356,0.82766163,63567.0,63566.0,0.001]
[1721064840575,0.157329,63561.0,63558.0,0.00278353]
[1721064840751,0.25077073,63567.0,63558.0,0.00278353]
[1721064840752,0.00028,63560.0,63558.0,0.00278353]
[1721064840952,0.157324,63563.0,63556.0,0.00278353]
[1721064841155,0.00028,63562.0,63556.0,0.16012353]
[1721064841332,0.00028,63562.0,63556.0,0.15734]
[1721064841562,0.157604,63563.0,63556.0,0.15734]
[1721064841755,0.17987364,63562.0,63555.0,0.157343]
[1721064841958,0.02282564,63561.0,63558.0,0.003]
[1721064842155,0.02254564,63560.0,63558.0,0.003]
[1721064842359,0.02254564,63560.0,63556.0,0.0153311]
[1721064842360,0.00028,63559.0,63556.0,0.0153311]
[1721064842579,0.00028,63559.0,63554.0,0.314689]
[1721064842580,0.157604,63563.0,63555.0,0.157343]
[1721064842784,0.157342,63556.0,63549.0,0.0245161]
[1721064843158,0.0648,63559.0,63549.0,0.0245161]
[1721064843159,0.00028,63555.0,63549.0,0.009185]
[1721064843325,0.157623,63556.0,63549.0,0.0245161]
[1721064843466,0.379472,63559.0,63549.0,0.009185]
[1721064843467,0.00028,63553.0,63549.0,0.009185]
[1721064843668,0.00028,63553.0,63549.0,0.0245161]
[1721064843876,0.00028,63555.0,63550.0,0.0153311]
[1721064844092,0.00028,63555.0,63553.0,0.0153311]
[1721064844293,0.00028,63557.0,63555.0,0.0153311]
[1721064844504,0.00028,63557.0,63554.0,0.0153311]
[1721064844505,0.02295427,63556.0,63554.0,0.0153311]
[1721064844700,0.00028,63555.0,63554.0,0.0153311]
[1721064844921,0.02323195,63555.0,63554.0,0.0153311]
[1721064845126,0.02295195,63555.0,63552.0,0.0153311]
[1721064845383,0.00028,63554.0,63551.0,0.0153311]
[1721064845575,0.00028,63554.0,63549.0,0.01196853]
[1721064845576,0.00028,63554.0,63549.0,0.009185]
[1721064845770,0.00028,63555.0,63550.0,0.0153311]
[1721064845971,0.02329695,63554.0,63549.0,0.1818741]
[1721064846256,0.00028,63553.0,63549.0,0.009185]
[1721064846440,0.00028,63553.0,63550.0,0.0153311]
[1721064846645,0.00028,63556.0,63549.0,0.166542]
[1721064846886,0.18028061,63555.0,63549.0,0.166543]
[1721064847095,0.02321561,63554.0,63549.0,0.009185]
[1721064847297,0.219956,63550.0,63549.0,0.009185]
[1721064847645,0.157633,63552.0,63549.0,0.009185]
[1721064847872,0.02297845,63551.0,63550.0,0.0153311]
[1721064848272,0.0617,63562.0,63555.0,0.0153311]
[1721064848273,0.00028,63558.0,63555.0,0.0153311]
[1721064848655,0.02315399,63557.0,63556.0,0.1726721]
[1721064848768,0.157322,63564.0,63562.0,0.0153311]
[1721064848973,0.02314832,63563.0,63562.0,0.0153311]
[1721064849377,0.02342832,63563.0,63562.0,0.0153311]
[1721064849965,0.02342832,63563.0,63562.0,0.001]
[1721064850137,0.18047232,63563.0,63562.0,0.001]
[1721064850314,0.18047232,63563.0,63556.0,0.16012453]
[1721064850639,0.18075532,63562.0,63556.0,0.16012453]
[1721064850794,0.02314832,63561.0,63556.0,0.157341]
[1721064851194,0.00028,63560.0,63556.0,0.1726721]
[1721064851400,0.00028,63560.0,63558.0,0.0153311]
[1721064851401,0.02314832,63559.0,63558.0,0.0153311]
[1721064851601,0.02314832,63559.0,63556.0,0.158341]
[1721064851807,0.02314832,63558.0,63556.0,0.157341]
[1721064852012,0.02347775,63557.0,63556.0,0.157341]
[1721064852218,0.02347775,63557.0,63556.0,0.002]
[1721064852416,0.02327099,63557.0,63556.0,0.002]
[1721064852704,0.02327099,63557.0,63556.0,0.001]
[1721064853070,0.008,63558.0,63556.0,0.002]
[1721064853368,0.02327099,63557.0,63556.0,0.001]
[1721064853565,0.02327099,63557.0,63556.0,0.1726721]
[1721064853739,0.02398724,63565.0,63562.0,0.0153311]
[1721064854088,0.02370722,63564.0,63563.0,0.4873031]
[1721064854203,0.00083001,63567.0,63566.0,0.1726471]
[1721064854411,0.00083001,63567.0,63566.0,0.88785916]
[1721064854644,0.00083001,63567.0,63566.0,0.9509131]
[1721064854849,0.00083001,63567.0,63566.0,1.2545461]
[1721064855249,0.00083001,63567.0,63566.0,1.2405461]
[1721064855573,0.00083001,63567.0,63566.0,1.3605461]
[1721064855710,0.00083001,63567.0,63566.0,1.2405461]
[1721064856110,0.00083001,63567.0,63566.0,1.2435461]
[1721064856359,0.00083001,63567.0,63566.0,1.3635461]
[1721064856569,0.00083001,63567.0,63566.0,1.6791791]
[1721064856773,0.00083001,63567.0,63566.0,1.6781791]
[1721064857132,0.00083001,63567.0,63566.0,1.6831791]
[1721064857335,0.00083001,63567.0,63566.0,1.2485461]
[1721064857890,0.00083001,63567.0,63566.0,1.2565461]
[1721064858102,0.00083001,63567.0,63566.0,1.3605461]
[1721064858306,0.00083001,63567.0,63566.0,1.3665461]
[1721064858507,0.00083001,63567.0,63566.0,1.3795461]
[1721064858859,0.00083001,63567.0,63566.0,1.3735461]
[1721064859080,0.00083001,63567.0,63566.0,1.2535461]
[1721064859824,0.00083001,63567.0,63566.0,1.2515461]
[1721064860040,0.00083001,63567.0,63566.0,1.3845461]
[1721064860379,0.00083001,63567.0,63566.0,1.3715461]
[1721064860617,0.00083001,63567.0,63566.0,1.3855461]
[1721064861007,0.00083001,63567.0,63566.0,1.7001791]
[1721064861385,0.00083001,63567.0,63566.0,1.6861791]
[1721064861688,0.00083001,63567.0,63566.0,1.6751791]
[1721064861885,0.00083001,63567.0,63566.0,1.7751791]
[1721064862087,0.00083001,63567.0,63566.0,1.7881791]
[1721064862532,0.00083001,63567.0,63566.0,1.7751791]
[1721064862924,0.00083001,63567.0,63566.0,1.7891791]
[1721064863547,0.00083001,63567.0,63566.0,1.7751791]
[1721064863748,0.00083001,63567.0,63566.0,1.7891791]
[1721064863947,0.00083001,63567.0,63566.0,2.1178091]
[1721064864839,0.00020377,63567.0,63566.0,2.1178091]
[1721064866002,0.00020377,63567.0,63566.0,1.982478]
[1721064866338,0.00020377,63567.0,63566.0,2.1178091]
[1721064869721,0.00020377,63567.0,63566.0,2.3178091]
[1721064871617,0.00020377,63567.0,63566.0,2.1178091]
[1721064871823,0.00020377,63567.0,63566.0,2.3178091]
[1721064872028,0.00020377,63567.0,63566.0,2.1178091]
[1721064872229,0.00020377,63567.0,63566.0,2.3178091]
[1721064874689,0.00020377,63567.0,63566.0,2.1178091]
[1721064878682,0.00020377,63567.0,63566.0,1.8978091]
[1721064878888,0.00020377,63567.0,63566.0,2.0178091]
[1721064879203,0.00020377,63567.0,63566.0,0.8049101]
[1721064879529,0.00020377,63567.0,63566.0,0.789579]
[1721064880204,0.00020377,63567.0,63566.0,0.775579]
[1721064880614,0.00020377,63567.0,63566.0,1.0965431]
[1721064880813,0.00020377,63567.0,63566.0,1.0915431]
[1721064881044,0.00020377,63567.0,63566.0,1.0945431]
[1721064881217,0.00020377,63567.0,63566.0,1.0994561]
[1721064881418,0.00020377,63567.0,63566.0,1.0964561]
[1721064881637,0.00020377,63567.0,63566.0,1.4110891]
[1721064881841,0.00020377,63567.0,63566.0,1.0964561]
[1721064882218,0.00020377,63567.0,63566.0,1.0984561]
[1721064882529,0.00020377,63567.0,63566.0,1.0944561]
[1721064882735,0.00020377,63567.0,63566.0,1.0964561]
[1721064882932,0.00020377,63567.0,63566.0,1.0924561]
[1721064883377,0.00020377,63567.0,63566.0,1.0964561]
[1721064884168,0.02585545,63567.0,63566.0,0.766492]
[1721064884678,0.02585545,63567.0,63566.0,0.768492]
[1721064884855,0.08615545,63567.0,63566.0,0.768492]
[1721064885063,0.08615545,63567.0,63566.0,0.766492]
[1721064885359,0.08615545,63567.0,63566.0,0.768492]
[1721064885585,0.08615545,63567.0,63566.0,0.321543]
[1721064885789,1.01853671,63567.0,63566.0,0.321543]
[1721064886008,1.42113927,63567.0,63566.0,0.321543]
[1721064886232,1.00184237,63567.0,63566.0,0.321543]
[1721064887132,0.39889897,63567.0,63566.0,0.321543]
[1721064887360,0.39889897,63567.0,63566.0,0.319543]
[1721064887361,0.39861773,63567.0,63566.0,0.319543]
[1721064887622,0.71324573,63567.0,63566.0,0.315543]
[1721064888101,1.08981248,63567.0,63566.0,0.315543]
[1721064888333,0.77518605,63567.0,63566.0,0.315543]
[1721064888508,0.15980373,63567.0,63566.0,0.315543]
[1721064888992,0.11866137,63567.0,63566.0,0.315543]
[1721064889514,0.1635141,63567.0,63566.0,0.315543]
[1721064889769,0.582811,63567.0,63566.0,0.317543]
[1721064890024,1.364853,63567.0,63566.0,0.317543]
[1721064890482,1.67711056,63567.0,63566.0,0.317543]
[1721064890695,2.0650968,63567.0,63566.0,0.317543]
[1721064891126,1.86563246,63567.0,63566.0,0.317543]
[1721064891334,2.06563246,63567.0,63566.0,0.317543]
[1721064891539,2.06563246,63567.0,63566.0,0.315543]
[1721064891977,1.86563246,63567.0,63566.0,0.315543]
[1721064892185,2.06563246,63567.0,63566.0,0.315543]
[1721064892395,1.86563246,63567.0,63566.0,0.315543]
[1721064893317,1.86763246,63567.0,63566.0,0.316543]
[1721064893519,1.86763246,63567.0,63566.0,0.317543]
[1721064893520,1.8692017,63567.0,63566.0,0.317543]
[1721064893735,1.86820218,63567.0,63566.0,0.316543]
[1721064893934,1.86820218,63567.0,63566.0,0.317543]
[1721064893935,2.06920218,63567.0,63566.0,0.317543]
[1721064894136,1.86920218,63567.0,63566.0,0.317543]
[1721064894361,2.06920218,63567.0,63566.0,0.317543]
[1721064894779,2.06720218,63567.0,63566.0,0.316543]
[1721064894956,2.06920218,63567.0,63566.0,0.317543]
[1721064895380,1.86920218,63567.0,63566.0,0.317543]
[1721064897807,1.84620218,63567.0,63566.0,0.317543]
[1721064898012,1.43623947,63567.0,63566.0,0.317543]
[1721064898211,1.36443821,63567.0,63566.0,0.317543]
[1721064898439,1.01694257,63567.0,63566.0,0.317543]
[1721064898637,0.02774784,63567.0,63566.0,0.4891901]
[1721064898762,0.00120377,63567.0,63566.0,1.1957561]
[1721064898971,0.00320377,63567.0,63566.0,1.1967561]
[1721064899173,0.00320377,63567.0,63566.0,0.8821231]
[1721064899391,0.00120377,63567.0,63566.0,0.865792]
[1721064899748,0.00120377,63567.0,63566.0,0.551159]
[1721064899749,0.00220377,63567.0,63566.0,0.551159]
[1721064899886,0.02925666,63567.0,63566.0,0.474859]
[1721064900094,0.00320377,63567.0,63566.0,0.474859]
[1721064900522,0.00420377,63567.0,63566.0,0.317543]
[1721064900952,0.00220377,63567.0,63566.0,0.473859]
[1721064901228,0.00420377,63567.0,63566.0,0.316543]
[1721064902015,0.00420377,63567.0,63566.0,0.4891901]
[1721064902242,0.03031318,63567.0,63566.0,0.4891901]
[1721064902450,0.00420377,63567.0,63566.0,1.5721891]
[1721064902860,0.00420377,63567.0,63566.0,0.867392]
[1721064903293,0.00220377,63567.0,63566.0,0.551759]
[1721064903782,0.00220377,63567.0,63566.0,0.870392]
[1721064904135,0.00220377,63567.0,63566.0,0.866392]
[1721064904136,0.00020377,63567.0,63566.0,0.866392]
[1721064904337,0.00320377,63567.0,63566.0,0.551759]
[1721064904566,0.00320377,63567.0,63566.0,0.866392]
[1721064904713,0.00120377,63567.0,63566.0,1.1963561]
[1721064905101,0.00320377,63567.0,63566.0,0.8817231]
[1721064905450,0.00320377,63567.0,63566.0,0.8818831]
[1721064905665,0.00120377,63567.0,63566.0,0.8818831]
[1721064905872,0.00320377,63567.0,63566.0,0.8818831]
[1721064906100,0.00220377,63567.0,63566.0,0.8818831]
[1721064906298,0.00320377,63567.0,63566.0,1.5111491]
[1721064906509,0.00320377,63567.0,63566.0,1.1965161]
[1721064906690,0.00320377,63567.0,63566.0,1.5111491]
[1721064906893,0.00320377,63567.0,63566.0,1.6947491]
[1721064907097,0.00220377,63567.0,63566.0,1.6947491]
[1721064907300,0.00220377,63567.0,63566.0,1.5747491]
[1721064907515,0.00320377,63567.0,63566.0,1.5747491]
[1721064907826,0.00220377,63567.0,63566.0,1.5747491]
[1721064908008,0.00020377,63567.0,63566.0,1.5747491]
[1721064908387,0.00220377,63567.0,63566.0,1.6947491]
[1721064908586,0.00220377,63567.0,63566.0,1.5747491]
[1721064908835,0.00020377,63567.0,63566.0,1.5747491]
[1721064909009,0.00020377,63567.0,63566.0,1.5748491]
[1721064909211,0.00020377,63567.0,63566.0,1.5808491]
[1721064911907,0.00020377,63567.0,63566.0,1.2662161]
[1721064912665,0.00020377,63567.0,63566.0,1.5808491]
[1721064914039,0.00020377,63567.0,63566.0,1.7008491]
[1721064915437,0.00020377,63567.0,63566.0,2.3154821]
[1721064915917,0.00020377,63567.0,63566.0,2.5154821]
[1721064916550,0.00020377,63567.0,63566.0,2.2094821]
[1721064916730,0.00020377,63567.0,63566.0,1.8988491]
[1721064917368,0.00020377,63567.0,63566.0,1.6788491]
[1721064917570,0.00020377,63567.0,63566.0,1.8988491]
[1721064917759,0.00020377,63567.0,63566.0,1.7948491]
[1721064917934,0.00020377,63567.0,63566.0,1.6908491]
[1721064918144,0.00020377,63567.0,63566.0,1.5908491]
[1721064918398,0.00020377,63567.0,63566.0,1.8088491]
[1721064918542,0.00020377,63567.0,63566.0,1.7088491]
[1721064918746,0.00020377,63567.0,63566.0,1.7228491]
[1721064918966,0.00020377,63567.0,63566.0,1.7028491]
[1721064919172,0.00020377,63567.0,63566.0,1.8228491]
[1721064919326,0.00020377,63567.0,63566.0,1.8088491]
[1721064919751,0.00020377,63567.0,63566.0,1.8228491]
[1721064920202,0.00020377,63567.0,63566.0,2.2374821]
[1721064920764,0.00020377,63567.0,63566.0,2.4374821]
[1721064921175,0.00020377,63567.0,63566.0,2.4094821]
[1721064921342,0.00020377,63567.0,63566.0,2.4234821]
[1721064921548,0.00020377,63567.0,63566.0,2.4374821]
[1721064921753,0.00020377,63567.0,63566.0,2.3374821]
[1721064921963,0.00020377,63567.0,63566.0,2.4234821]
[1721064922399,0.00020377,63567.0,63566.0,2.4374821]
[1721064922611,0.00020377,63567.0,63566.0,2.4234821]
[1721064923016,0.00020377,63567.0,63566.0,2.5374821]
[1721064923546,0.00020377,63567.0,63566.0,2.5234821]
[1721064923972,0.00020377,63567.0,63566.0,2.5374821]
[1721064924171,0.00020377,63567.0,63566.0,2.5094821]
[1721064924374,0.00020377,63567.0,63566.0,2.5234821]
[1721064924553,0.00020377,63567.0,63566.0,2.5374821]
[1721064924957,0.00020377,63567.0,63566.0,3.00023301]
[1721064925173,0.00083,63589.0,63588.0,1.7910891]
[1721064925368,0.00083,63589.0,63588.0,2.79552701]
[1721064925592,0.00083473,63613.0,63608.0,0.0906311]
[1721064925791,0.00083473,63613.0,63612.0,0.4869401]
[1721064925969,0.00083473,63613.0,63612.0,1.4301621]
[1721064927223,0.00083473,63613.0,63612.0,1.8645681]
[1721064927436,0.00083473,63613.0,63612.0,1.7445681]
[1721064927637,0.00083473,63613.0,63612.0,1.736237]
[1721064928085,0.00083473,63613.0,63612.0,1.8715681]
[1721064928419,0.00083473,63613.0,63612.0,1.9715681]
[1721064928686,0.00083473,63613.0,63612.0,2.1835681]
[1721064928890,0.00835,63617.0,63616.0,1.9500681]
[1721064929051,0.00835,63617.0,63616.0,2.97652839]
[1721064929230,0.00835,63624.0,63618.0,1.0068951]
[1721064929431,0.00835,63624.0,63618.0,2.44952101]
[1721064929655,0.00835,63624.0,63618.0,2.86389701]
[1721064930057,0.00835,63624.0,63618.0,2.1874031]
[1721064930257,0.00835,63624.0,63618.0,2.36746663]
[1721064930467,0.00835,63624.0,63618.0,2.68184263]
[1721064931045,0.00835,63624.0,63618.0,2.16746663]
[1721064931244,0.00835,63624.0,63618.0,2.1644031]
[1721064931519,0.00835,63624.0,63618.0,1.9644031]
[1721064931726,0.00835,63624.0,63618.0,1.6500271]
[1721064931855,0.00835,63624.0,63618.0,1.4300271]
[1721064932087,0.00835,63624.0,63618.0,1.4440271]
[1721064932268,0.00835,63624.0,63618.0,1.5780271]
[1721064932484,0.00835,63624.0,63618.0,1.5640271]
[1721064932688,0.00835,63624.0,63618.0,1.5500271]
[1721064932992,0.00835,63624.0,63618.0,1.5640271]
[1721064933190,0.00835,63624.0,63618.0,1.4580271]
[1721064933419,0.00835,63624.0,63618.0,1.4720271]
[1721064934564,0.00835,63624.0,63618.0,1.4580271]
[1721064934775,0.00835,63624.0,63618.0,1.1436511]
[1721064934985,0.00835,63624.0,63618.0,0.825944]
[1721064935183,0.00835,63624.0,63618.0,0.797944]
[1721064935389,0.00835,63624.0,63618.0,1.1156511]
[1721064935603,0.00835,63624.0,63618.0,1.4440271]
[1721064935799,0.00835,63624.0,63618.0,1.4390271]
[1721064936202,0.00835,63624.0,63618.0,1.4440271]
[1721064936625,0.00835,63624.0,63618.0,1.4560271]
[1721064936924,0.00835,63624.0,63618.0,1.4420271]
[1721064937299,0.00835,63624.0,63618.0,1.4540271]
[1721064937662,0.00835,63624.0,63618.0,1.1396511]
[1721064938638,0.00835,63624.0,63618.0,1.1276511]
[1721064939015,0.00835,63624.0,63618.0,1.1416511]
[1721064940082,0.00835,63624.0,63618.0,0.811944]
[1721064940283,0.00835,63624.0,63618.0,0.34038]
[1721064940284,0.1046689,63622.0,63618.0,0.34038]
[1721064940466,0.00501694,63619.0,63618.0,0.34038]
[1721064940675,0.1392,63621.0,63611.0,0.314407]
[1721064940867,0.1392,63621.0,63575.0,0.04656282]
[1721064940868,0.0622,63597.0,63575.0,0.04656282]
[1721064941115,0.0622,63597.0,63577.0,0.0153311]
[1721064941116,0.2278,63582.0,63577.0,0.0153311]
[1721064941523,0.2278,63582.0,63578.0,0.1726171]
[1721064941724,0.2278,63582.0,63578.0,0.157286]
[1721064942386,0.2278,63582.0,63573.0,0.157299]
[1721064942387,0.21778,63581.0,63573.0,0.157299]
[1721064942700,0.0605,63581.0,63578.0,0.001]
[1721064943103,0.00492277,63580.0,63578.0,0.001]
[1721064943313,0.00492277,63580.0,63577.0,0.001]
[1721064943314,0.00492277,63580.0,63577.0,0.158289]
[1721064943714,0.00492277,63580.0,63577.0,0.001]
[1721064944316,0.00492277,63580.0,63578.0,0.000913]
[1721064944762,0.00492277,63580.0,63578.0,0.001913]
[1721064944974,0.00492277,63580.0,63579.0,0.8017531]
[1721064945197,0.015,63581.0,63579.0,0.31457]
[1721064945349,0.004,63581.0,63579.0,0.31457]
[1721064945554,0.004,63581.0,63580.0,0.1726131]
[1721064945802,0.0657,63588.0,63580.0,0.157282]
[1721064946021,0.222962,63588.0,63580.0,0.157282]
[1721064946573,0.011,63581.0,63580.0,0.157282]
[1721064946783,0.02,63581.0,63580.0,0.158282]
[1721064946981,0.02,63581.0,63580.0,0.157282]
[1721064947809,0.009,63581.0,63580.0,0.157282]
[1721064948009,0.236962,63588.0,63581.0,0.157279]
[1721064948586,0.00147888,63587.0,63581.0,0.157279]
[1721064950236,0.00147888,63587.0,63579.0,0.471853]
[1721064950237,0.26341278,63587.0,63579.0,0.471853]